fUSD/lending_fUSD_20240714
["ID","MTS","AMOUNT","RATE_DAILY","PERIOD"]
[332115242,1720971044130,-299.84147396,0.00013698,2]
[332115244,1720971044143,-305.67881732,0.00013698,2]
[332115246,1720971044155,-4935.82970872,0.00013698,2]
[332115248,1720971044165,-500.0,0.00013698,2]
[332115250,1720971044174,-500.0,0.00013698,2]
[332115252,1720971044184,-500.0,0.00013698,2]
[332115254,1720971044193,-500.0,0.00013698,2]
[332115256,1720971044203,-500.0,0.00013698,2]
[332115258,1720971044212,-500.0,0.00013698,2]
[332115260,1720971044222,-500.0,0.00013698,2]
[332115262,1720971044231,-500.0,0.00013698,2]
[332115264,1720971044241,-500.0,0.00013698,2]
[332115266,1720971044251,-500.0,0.00013698,2]
[332115268,1720971044260,-500.0,0.00013698,2]
[332115270,1720971044270,-500.0,0.00013698,2]
[332115272,1720971044279,-500.0,0.00013698,2]
[332115274,1720971044289,-500.0,0.00013698,2]
[332115276,1720971044298,-500.0,0.00013698,2]
[332115278,1720971044307,-500.0,0.00013698,2]
[332115280,1720971044316,-500.0,0.00013698,2]
[332115283,1720971044326,-500.0,0.00013698,2]
[332115285,1720971044336,-500.0,0.00013698,2]
[332115287,1720971044346,-1512.72,0.00013698,2]
[332115289,1720971044355,-500.0,0.00013698,2]
[332115291,1720971044364,-500.0,0.00013698,2]
[332115293,1720971044373,-500.0,0.00013698,2]
[332115295,1720971044383,-500.0,0.00013698,2]
[332115297,1720971044395,-659.94,0.00013698,2]
[332115299,1720971044404,-908.08,0.00013698,2]
[332115301,1720971044414,-500.0,0.00013698,2]
[332115303,1720971044423,-500.0,0.00013698,2]
[332115305,1720971044432,-830.59,0.00013698,2]
[332115307,1720971044443,-500.0,0.00013698,2]
[332115309,1720971044452,-376.92966475,0.00013698,2]
[332115425,1720971045558,-123.07033525,0.00013698,2]
[332115426,1720971045568,-775.48,0.00013698,2]
[332115427,1720971045578,-1446.23,0.00013698,2]
[332115428,1720971045588,-500.0,0.00013698,2]
[332115429,1720971045597,-500.0,0.00013698,2]
[332115430,1720971045607,-1175.69,0.00013698,2]
[332115431,1720971045616,-879.2,0.00013698,2]
[332115432,1720971045626,-500.0,0.00013698,2]
[332115433,1720971045635,-500.0,0.00013698,2]
[332115435,1720971045647,-500.0,0.00013698,2]
[332115437,1720971045656,-500.0,0.00013698,2]
[332115439,1720971045665,-500.0,0.00013698,2]
[332115441,1720971045674,-500.0,0.00013698,2]
[332115443,1720971045684,-500.0,0.00013698,2]
[332115444,1720971045693,-500.0,0.00013698,2]
[332115446,1720971045703,-500.0,0.00013698,2]
[332115449,1720971045712,-500.0,0.00013698,2]
[332115450,1720971045722,-500.0,0.00013698,2]
[332115452,1720971045732,-987.1,0.00013698,2]
[332115454,1720971045742,-2115.03,0.00013698,2]
[332115456,1720971045752,-500.0,0.00013698,2]
[332115458,1720971045762,-500.0,0.00013698,2]
[332115460,1720971045771,-500.0,0.00013698,2]
[332115462,1720971045781,-500.0,0.00013698,2]
[332115464,1720971045791,-1104.67,0.00013698,2]
[332115466,1720971045801,-500.0,0.00013698,2]
[332115468,1720971045811,-500.0,0.00013698,2]
[332115470,1720971045821,-500.0,0.00013698,2]
[332115472,1720971045830,-6267.77,0.00013698,2]
[332115475,1720971045840,-500.0,0.00013698,2]
[332115478,1720971045849,-500.0,0.00013698,2]
[332115481,1720971045858,-1646.02,0.00013698,2]
[332115483,1720971045867,-511.88,0.00013698,2]
[332115487,1720971045877,-500.0,0.00013698,2]
[332115489,1720971045886,-555.79,0.00013698,2]
[332115491,1720971045897,-500.0,0.00013698,2]
[332115493,1720971045906,-500.0,0.00013698,2]
[332115495,1720971045916,-500.0,0.00013698,2]
[332115497,1720971045925,-1061.48,0.00013698,2]
[332115499,1720971045935,-500.0,0.00013698,2]
[332115501,1720971045946,-921.71,0.00013698,2]
[332115503,1720971045955,-500.0,0.00013698,2]
[332115505,1720971045966,-591.79,0.00013698,2]
[332115507,1720971045976,-747.46,0.00013698,2]
[332115509,1720971045987,-602.8,0.00013698,2]
[332115511,1720971046001,-750.53,0.00013698,2]
[332115513,1720971046011,-500.0,0.00013698,2]
[332115515,1720971046021,-500.0,0.00013698,2]
[332115517,1720971046031,-500.0,0.00013698,2]
[332115519,1720971046042,-500.0,0.00013698,2]
[332115521,1720971046053,-973.96,0.00013698,2]
[332115523,1720971046064,-500.0,0.00013698,2]
[332115525,1720971046075,-1519.93,0.00013698,2]
[332115527,1720971046084,-542.12,0.00013698,2]
[332115529,1720971046095,-500.0,0.00013698,2]
[332115531,1720971046105,-500.0,0.00013698,2]
[332115533,1720971046115,-500.0,0.00013698,2]
[332115536,1720971046124,-506.42,0.00013698,2]
[332115538,1720971046134,-759.89,0.00013698,2]
[332115539,1720971046143,-500.0,0.00013698,2]
[332115542,1720971046155,-500.0,0.00013698,2]
[332115545,1720971046164,-500.0,0.00013698,2]
[332115549,1720971046174,-500.0,0.00013698,2]
[332115553,1720971046184,-822.94,0.00013698,2]
[332115556,1720971046194,-500.0,0.00013698,2]
[332115559,1720971046204,-500.0,0.00013698,2]
[332115562,1720971046214,-500.0,0.00013698,2]
[332115565,1720971046223,-500.0,0.00013698,2]
[332115567,1720971046234,-622.53,0.00013698,2]
[332115570,1720971046244,-8186.55,0.00013698,2]
[332115573,1720971046253,-527.16,0.00013698,2]
[332115575,1720971046263,-500.0,0.00013698,2]
[332115578,1720971046274,-590.82,0.00013698,2]
[332115582,1720971046284,-854.06,0.00013698,2]
[332115584,1720971046294,-1271.06,0.00013698,2]
[332115587,1720971046304,-500.0,0.00013698,2]
[332115590,1720971046314,-500.0,0.00013698,2]
[332115593,1720971046324,-650.41,0.00013698,2]
[332115596,1720971046333,-500.0,0.00013698,2]
[332115599,1720971046344,-500.0,0.00013698,2]
[332115602,1720971046353,-500.0,0.00013698,2]
[332115604,1720971046363,-500.0,0.00013698,2]
[332115606,1720971046373,-500.0,0.00013698,2]
[332115608,1720971046383,-500.0,0.00013698,2]
[332115610,1720971046393,-500.0,0.00013698,2]
[332115612,1720971046404,-500.0,0.00013698,2]
[332115614,1720971046414,-500.0,0.00013698,2]
[332115616,1720971046423,-500.0,0.00013698,2]
[332115618,1720971046433,-500.0,0.00013698,2]
[332115620,1720971046443,-500.0,0.00013698,2]
[332115622,1720971046452,-500.0,0.00013698,2]
[332115624,1720971046462,-500.0,0.00013698,2]
[332115626,1720971046472,-500.0,0.00013698,2]
[332115628,1720971046481,-386.02951568,0.00013698,2]
[332115681,1720971046978,-446.266,0.00013493,2]
[332115683,1720971046989,-113.97048432,0.00013698,2]
[332115685,1720971047002,-500.0,0.00013698,2]
[332115687,1720971047011,-500.0,0.00013698,2]
[332115689,1720971047021,-500.0,0.00013698,2]
[332115691,1720971047030,-500.0,0.00013698,2]
[332115693,1720971047042,-994.58,0.00013698,2]
[332115695,1720971047052,-414.60542572,0.00013698,2]
[332115698,1720971047063,-85.39457428,0.00013698,2]
[332115700,1720971047074,-500.0,0.00013698,2]
[332115702,1720971047084,-500.0,0.00013698,2]
[332115704,1720971047093,-500.0,0.00013698,2]
[332115706,1720971047103,-812.97,0.00013698,2]
[332115708,1720971047112,-500.0,0.00013698,2]
[332115709,1720971047121,-500.0,0.00013698,2]
[332115711,1720971047131,-500.0,0.00013698,2]
[332115714,1720971047141,-500.0,0.00013698,2]
[332115716,1720971047151,-500.0,0.00013698,2]
[332115718,1720971047161,-500.0,0.00013698,2]
[332115720,1720971047171,-577.16,0.00013698,2]
[332115722,1720971047181,-500.0,0.00013698,2]
[332115723,1720971047190,-247.97137467,0.00013698,2]
[332115725,1720971047199,-106.34556415,0.00013698,2]
[332115728,1720971047211,-393.65443585,0.00013698,2]
[332115729,1720971047220,-500.0,0.00013698,2]
[332115731,1720971047230,-500.0,0.00013698,2]
[332115733,1720971047239,-500.0,0.00013698,2]
[332115735,1720971047248,-200.0,0.00013699,2]
[332115737,1720971047258,-317.0,0.00013699,2]
[332115739,1720971047267,-317.0,0.00013699,2]
[332115741,1720971047276,-317.0,0.00013699,2]
[332115743,1720971047285,-317.0,0.00013699,2]
[332115745,1720971047295,-317.0,0.00013699,2]
[332115747,1720971047304,-15.90472578,0.00013699,2]
[332115749,1720971047316,-301.09527422,0.00013699,2]
[332115751,1720971047326,-317.0,0.00013699,2]
[332115753,1720971047337,-317.0,0.00013699,2]
[332115755,1720971047347,-317.0,0.00013699,2]
[332115757,1720971047356,-317.0,0.00013699,2]
[332115759,1720971047366,-69.73738078,0.00013699,2]
[332115762,1720971047377,-247.26261922,0.00013699,2]
[332115763,1720971047386,-317.0,0.00013699,2]
[332115765,1720971047396,-317.0,0.00013699,2]
[332115768,1720971047405,-317.0,0.00013699,2]
[332115770,1720971047415,-317.0,0.00013699,2]
[332115771,1720971047424,-317.0,0.00013699,2]
[332115773,1720971047433,-317.0,0.00013699,2]
[332115775,1720971047443,-317.0,0.00013699,2]
[332115777,1720971047452,-317.0,0.00013699,2]
[332115779,1720971047462,-317.0,0.00013699,2]
[332115781,1720971047471,-317.0,0.00013699,2]
[332115783,1720971047480,-317.0,0.00013699,2]
[332115785,1720971047489,-317.0,0.00013699,2]
[332115787,1720971047498,-289.27223148,0.00013699,2]
[332115789,1720971047509,-27.72776852,0.00013699,2]
[332115792,1720971047519,-317.0,0.00013699,2]
[332115794,1720971047528,-206.92550656,0.00013699,2]
[332115796,1720971047539,-110.07449344,0.00013699,2]
[332115798,1720971047548,-317.0,0.00013699,2]
[332115800,1720971047559,-161.19890866,0.00013699,2]
[332115801,1720971047570,-155.80109134,0.00013699,2]
[332115802,1720971047580,-317.0,0.00013699,2]
[332115803,1720971047589,-317.0,0.00013699,2]
[332115804,1720971047599,-317.0,0.00013699,2]
[332115805,1720971047607,-317.0,0.00013699,2]
[332115806,1720971047617,-317.0,0.00013699,2]
[332115807,1720971047626,-317.0,0.00013699,2]
[332115808,1720971047636,-317.0,0.00013699,2]
[332115810,1720971047645,-317.0,0.00013699,2]
[332115812,1720971047656,-317.0,0.00013699,2]
[332115814,1720971047666,-317.0,0.00013699,2]
[332115816,1720971047675,-317.0,0.00013699,2]
[332115818,1720971047685,-317.0,0.00013699,2]
[332115820,1720971047694,-317.0,0.00013699,2]
[332115822,1720971047703,-317.0,0.00013699,2]
[332115824,1720971047712,-317.0,0.00013699,2]
[332115826,1720971047722,-317.0,0.00013699,2]
[332115828,1720971047731,-317.0,0.00013699,2]
[332115830,1720971047741,-317.0,0.00013699,2]
[332115832,1720971047750,-317.0,0.00013699,2]
[332115834,1720971047759,-317.0,0.00013699,2]
[332115836,1720971047769,-317.0,0.00013699,2]
[332115838,1720971047778,-317.0,0.00013699,2]
[332115840,1720971047787,-317.0,0.00013699,2]
[332115842,1720971047799,-317.0,0.00013699,2]
[332115844,1720971047809,-317.0,0.00013699,2]
[332115846,1720971047820,-317.0,0.00013699,2]
[332115848,1720971047829,-317.0,0.00013699,2]
[332115850,1720971047839,-317.0,0.00013699,2]
[332115852,1720971047848,-317.0,0.00013699,2]
[332115854,1720971047858,-317.0,0.00013699,2]
[332115856,1720971047868,-317.0,0.00013699,2]
[332115858,1720971047877,-317.0,0.00013699,2]
[332115860,1720971047888,-317.0,0.00013699,2]
[332115862,1720971047899,-317.0,0.00013699,2]
[332115864,1720971047908,-317.0,0.00013699,2]
[332115866,1720971047917,-317.0,0.00013699,2]
[332115868,1720971047927,-317.0,0.00013699,2]
[332115870,1720971047937,-317.0,0.00013699,2]
[332115872,1720971047947,-317.0,0.00013699,2]
[332115874,1720971047958,-317.0,0.00013699,2]
[332115876,1720971047967,-317.0,0.00013699,2]
[332115878,1720971047976,-317.0,0.00013699,2]
[332115880,1720971047986,-317.0,0.00013699,2]
[332115882,1720971047999,-317.0,0.00013699,2]
[332115884,1720971048009,-317.0,0.00013699,2]
[332115886,1720971048018,-317.0,0.00013699,2]
[332115888,1720971048029,-317.0,0.00013699,2]
[332115890,1720971048038,-180.05737442,0.00013699,2]
[332115892,1720971048051,-136.94262558,0.00013699,2]
[332115894,1720971048062,-317.0,0.00013699,2]
[332115896,1720971048072,-223.15102311,0.00013699,2]
[332115898,1720971048083,-93.84897689,0.00013699,2]
[332115900,1720971048093,-249.32676986,0.00013699,2]
[332115902,1720971048105,-67.67323014,0.00013699,2]
[332115904,1720971048114,-317.0,0.00013699,2]
[332115906,1720971048124,-317.0,0.00013699,2]
[332115907,1720971048134,-210.67292078,0.00013699,2]
[332115908,1720971048163,-106.32707922,0.00013699,2]
[332115909,1720971048173,-317.0,0.00013699,2]
[332115910,1720971048183,-317.0,0.00013699,2]
[332115911,1720971048193,-317.0,0.00013699,2]
[332115912,1720971048202,-317.0,0.00013699,2]
[332115913,1720971048212,-317.0,0.00013699,2]
[332115914,1720971048221,-317.0,0.00013699,2]
[332115915,1720971048230,-317.0,0.00013699,2]
[332115916,1720971048240,-17.83236317,0.00013699,2]
[332115917,1720971048251,-299.16763683,0.00013699,2]
[332115919,1720971048260,-317.0,0.00013699,2]
[332115921,1720971048270,-317.0,0.00013699,2]
[332115923,1720971048279,-317.0,0.00013699,2]
[332115925,1720971048288,-317.0,0.00013699,2]
[332115927,1720971048298,-317.0,0.00013699,2]
[332115929,1720971048307,-317.0,0.00013699,2]
[332115931,1720971048316,-317.0,0.00013699,2]
[332115932,1720971048326,-136.00608873,0.00013699,2]
[332115935,1720971048337,-424.18779121,0.00013699,2]
[332115937,1720971048348,-33.14612006,0.00013699,2]
[332115939,1720971048358,-200.0,0.00013699,2]
[332115941,1720971048367,-250.0,0.00013699,2]
[332115943,1720971048376,-500.0,0.00013699,2]
[332115944,1720971048385,-500.0,0.00013699,2]
[332115946,1720971048395,-16.75395994,0.00013699,2]
[332115949,1720971048411,-483.24604006,0.00013699,2]
[332115951,1720971048420,-9.84407838,0.00013699,2]
[332115953,1720971048432,-490.15592162,0.00013699,2]
[332115955,1720971048442,-228.86617838,0.00013699,2]
[332115957,1720971048453,-271.13382162,0.00013699,2]
[332115959,1720971048463,-500.0,0.00013699,2]
[332115961,1720971048473,-500.0,0.00013699,2]
[332115963,1720971048483,-500.0,0.00013699,2]
[332115965,1720971048492,-500.0,0.00013699,2]
[332115967,1720971048502,-174.83404865,0.00013699,2]
[332115969,1720971048514,-325.16595135,0.00013699,2]
[332115971,1720971048523,-500.0,0.00013699,2]
[332115973,1720971048533,-240.01446439,0.00013699,2]
[332115976,1720971048545,-197.6844665,0.00013699,2]
[332115978,1720971048554,-500.0,0.00013699,2]
[332115980,1720971048564,-57.78566646,0.00013699,2]
[332115982,1720971048575,-442.21433354,0.00013699,2]
[332115984,1720971048584,-138.81080015,0.00013699,2]
[332115986,1720971048601,-361.18919985,0.00013699,2]
[332115988,1720971048611,-500.0,0.00013699,2]
[332115990,1720971048621,-556.46,0.00013699,2]
[332115993,1720971048631,-500.0,0.00013699,2]
[332115995,1720971048641,-500.0,0.00013699,2]
[332115997,1720971048651,-500.0,0.00013699,2]
[332115999,1720971048660,-500.0,0.00013699,2]
[332116000,1720971048669,-500.0,0.00013699,2]
[332116003,1720971048679,-500.0,0.00013699,2]
[332116005,1720971048689,-500.0,0.00013699,2]
[332116007,1720971048698,-500.0,0.00013699,2]
[332116008,1720971048708,-500.0,0.00013699,2]
[332116010,1720971048718,-264.73613661,0.00013699,2]
[332116012,1720971048727,-500.0,0.00013699,2]
[332116014,1720971048736,-500.0,0.00013699,2]
[332116016,1720971048746,-500.0,0.00013699,2]
[332116018,1720971048755,-500.0,0.00013699,2]
[332116020,1720971048765,-500.0,0.00013699,2]
[332116022,1720971048776,-579.6971942,0.00013699,2]
[332116025,1720971048786,-500.0,0.00013699,2]
[332116026,1720971048796,-500.0,0.00013699,2]
[332116028,1720971048805,-748.05,0.00013699,2]
[332116030,1720971048815,-500.0,0.00013699,2]
[332116032,1720971048825,-500.0,0.00013699,2]
[332116034,1720971048835,-500.0,0.00013699,2]
[332116036,1720971048844,-500.0,0.00013699,2]
[332116038,1720971048854,-500.0,0.00013699,2]
[332116040,1720971048863,-410.9737951,0.00013699,2]
[332116042,1720971048872,-500.0,0.00013699,2]
[332116044,1720971048883,-500.0,0.00013699,2]
[332116046,1720971048893,-500.0,0.00013699,2]
[332116048,1720971048904,-500.0,0.00013699,2]
[332116050,1720971048913,-500.0,0.00013699,2]
[332116052,1720971048922,-500.0,0.00013699,2]
[332116054,1720971048931,-500.0,0.00013699,2]
[332116056,1720971048941,-500.0,0.00013699,2]
[332116058,1720971048951,-500.0,0.00013699,2]
[332116060,1720971048960,-151.29699302,0.00013699,2]
[332116062,1720971048970,-500.0,0.00013699,2]
[332116064,1720971048980,-336.79698537,0.00013699,2]
[332116066,1720971048997,-163.20301463,0.00013699,2]
[332116068,1720971049007,-227.08648537,0.00013699,2]
[332116070,1720971049018,-272.91351463,0.00013699,2]
[332116073,1720971049029,-474.49346339,0.00013699,2]
[332116075,1720971049041,-25.50653661,0.00013699,2]
[332116077,1720971049051,-479.63346339,0.00013699,2]
[332116079,1720971049065,-20.36653661,0.00013699,2]
[332116081,1720971049075,-271.69746339,0.00013699,2]
[332116083,1720971049085,-228.30253661,0.00013699,2]
[332116085,1720971049095,-500.0,0.00013699,2]
[332116087,1720971049105,-500.0,0.00013699,2]
[332116089,1720971049114,-500.0,0.00013699,2]
[332116091,1720971049124,-500.0,0.00013699,2]
[332116093,1720971049133,-500.0,0.00013699,2]
[332116095,1720971049144,-500.0,0.00013699,2]
[332116097,1720971049155,-211.61858237,0.00013699,2]
[332116099,1720971049168,-288.38141763,0.00013699,2]
[332116101,1720971049178,-500.0,0.00013699,2]
[332116103,1720971049188,-174.0861955,0.00013699,2]
[332116105,1720971049198,-500.0,0.00013699,2]
[332116107,1720971049208,-81.28938687,0.00013699,2]
[332116109,1720971049220,-418.71061313,0.00013699,2]
[332116111,1720971049232,-30.48397987,0.00013699,2]
[332116114,1720971049243,-469.51602013,0.00013699,2]
[332116116,1720971049253,-386.69324411,0.00013699,2]
[332116118,1720971049264,-113.30675589,0.00013699,2]
[332116120,1720971049274,-500.0,0.00013699,2]
[332116122,1720971049285,-500.0,0.00013699,2]
[332116124,1720971049295,-208.55,0.00013699,2]
[332116125,1720971049305,-500.0,0.00013699,2]
[332116126,1720971049315,-500.0,0.00013699,2]
[332116127,1720971049325,-500.0,0.00013699,2]
[332116128,1720971049335,-500.0,0.00013699,2]
[332116129,1720971049344,-500.0,0.00013699,2]
[332116130,1720971049359,-500.0,0.00013699,2]
[332116131,1720971049369,-500.0,0.00013699,2]
[332116133,1720971049378,-500.0,0.00013699,2]
[332116135,1720971049388,-328.35211012,0.00013699,2]
[332116358,1720971465267,1500.0,0.00025,60]
[332116359,1720971466612,1500.0,0.00025,60]
[332116360,1720971471231,1500.0,0.00027,120]
[332116361,1720971476895,1227.07,0.00027,120]
[332116474,1720972231949,-394.33,0.0001077,2]
[332116475,1720972231960,-237.73772635,0.00010996,2]
[332116476,1720972231972,-296.0,0.00011096,2]
[332116477,1720972231982,-150.0,0.00011097,2]
[332116478,1720972231992,-156.0,0.00011098,2]
[332116479,1720972232004,-167.34984429,0.00011098,2]
[332116480,1720972232014,-158.57970611,0.00011098,2]
[332116481,1720972232023,-796.61234671,0.00011098,2]
[332116482,1720972232032,-1373.76774503,0.00011098,2]
[332116483,1720972232046,-18.97128463,0.00011098,2]
[332116484,1720972232055,-1078.28995199,0.00011098,2]
[332116485,1720972232065,-264.58820268,0.00011098,2]
[332116486,1720972232074,-2497.27465851,0.00011098,2]
[332116487,1720972232083,-227.3638533,0.00011098,2]
[332116488,1720972232092,-150.0,0.00011178,2]
[332116489,1720972232102,-150.0,0.00012403,2]
[332116490,1720972232111,-250.0,0.00012485,2]
[332116491,1720972232120,-250.0,0.00012555,2]
[332116492,1720972232130,-199.92,0.00012583,2]
[332116493,1720972232140,-1000.0,0.00012605,2]
[332116494,1720972232150,-213.35,0.00012762,2]
[332116495,1720972232159,-394.33,0.00013034,2]
[332116496,1720972232169,-38031.0,0.00013158,2]
[332116498,1720972232178,-162.856364,0.00013305,2]
[332116500,1720972232188,-196.879292,0.00013305,2]
[332116502,1720972232197,-177.367032,0.00013305,2]
[332116504,1720972232207,-218.629461,0.00013305,2]
[332116506,1720972232217,-174.686816,0.00013305,2]
[332116508,1720972232226,-1000.0,0.00013653,2]
[332116510,1720972232235,-829.38072415,0.00013694,2]
[332116512,1720972232245,-503.3664001,0.00013698,2]
[332116514,1720972232254,-500.0,0.00013698,2]
[332116516,1720972232263,-500.0,0.00013698,2]
[332116518,1720972232273,-500.0,0.00013698,2]
[332116520,1720972232282,-500.0,0.00013698,2]
[332116523,1720972232291,-500.0,0.00013698,2]
[332116526,1720972232301,-500.0,0.00013698,2]
[332116529,1720972232310,-500.0,0.00013698,2]
[332116531,1720972232320,-500.0,0.00013698,2]
[332116533,1720972232330,-500.0,0.00013698,2]
[332116535,1720972232341,-173.39497091,0.00013698,2]
[332116537,1720972232354,-500.0,0.00013698,2]
[332116539,1720972232363,-500.0,0.00013698,2]
[332116541,1720972232375,-582.27,0.00013698,2]
[332116543,1720972232384,-500.0,0.00013698,2]
[332116545,1720972232395,-500.0,0.00013698,2]
[332116547,1720972232404,-500.0,0.00013698,2]
[332116549,1720972232415,-500.0,0.00013698,2]
[332116551,1720972232427,-500.0,0.00013698,2]
[332116552,1720972232437,-500.0,0.00013698,2]
[332116553,1720972232447,-500.0,0.00013698,2]
[332116554,1720972232457,-615.03,0.00013698,2]
[332116555,1720972232466,-500.0,0.00013698,2]
[332116556,1720972232478,-500.0,0.00013698,2]
[332116557,1720972232488,-500.0,0.00013698,2]
[332116558,1720972232498,-500.0,0.00013698,2]
[332116559,1720972232509,-500.0,0.00013698,2]
[332116560,1720972232518,-500.0,0.00013698,2]
[332116561,1720972232528,-500.0,0.00013698,2]
[332116562,1720972232538,-500.0,0.00013698,2]
[332116563,1720972232547,-1552.05,0.00013698,2]
[332116564,1720972232557,-500.0,0.00013698,2]
[332116565,1720972232566,-500.0,0.00013698,2]
[332116566,1720972232575,-500.0,0.00013698,2]
[332116567,1720972232585,-575.93,0.00013698,2]
[332116568,1720972232594,-500.0,0.00013698,2]
[332116569,1720972232603,-500.0,0.00013698,2]
[332116570,1720972232612,-500.0,0.00013698,2]
[332116571,1720972232621,-500.0,0.00013698,2]
[332116572,1720972232631,-500.0,0.00013698,2]
[332116573,1720972232640,-500.0,0.00013698,2]
[332116574,1720972232650,-500.0,0.00013698,2]
[332116575,1720972232660,-500.0,0.00013698,2]
[332116576,1720972232670,-867.44,0.00013698,2]
[332116577,1720972232679,-500.0,0.00013698,2]
[332116578,1720972232688,-500.0,0.00013698,2]
[332116579,1720972232698,-500.0,0.00013698,2]
[332116580,1720972232707,-500.0,0.00013698,2]
[332116581,1720972232718,-500.0,0.00013698,2]
[332116582,1720972232728,-500.0,0.00013698,2]
[332116583,1720972232738,-500.0,0.00013698,2]
[332116584,1720972232749,-500.0,0.00013698,2]
[332116585,1720972232758,-500.0,0.00013698,2]
[332116586,1720972232768,-500.0,0.00013698,2]
[332116587,1720972232778,-500.0,0.00013698,2]
[332116588,1720972232787,-500.0,0.00013698,2]
[332116589,1720972232797,-500.0,0.00013698,2]
[332116590,1720972232806,-500.0,0.00013698,2]
[332116591,1720972232817,-500.0,0.00013698,2]
[332116592,1720972232827,-500.0,0.00013698,2]
[332116593,1720972232837,-500.0,0.00013698,2]
[332116594,1720972232847,-500.0,0.00013698,2]
[332116595,1720972232857,-420.81568716,0.00013698,2]
[332116596,1720972232867,-500.0,0.00013698,2]
[332116597,1720972232877,-500.0,0.00013698,2]
[332116598,1720972232888,-500.0,0.00013698,2]
[332116599,1720972232898,-500.0,0.00013698,2]
[332116600,1720972232908,-500.0,0.00013698,2]
[332116601,1720972232919,-500.0,0.00013698,2]
[332116602,1720972232928,-500.0,0.00013698,2]
[332116603,1720972232940,-500.0,0.00013698,2]
[332116604,1720972232952,-500.0,0.00013698,2]
[332116605,1720972232963,-500.0,0.00013698,2]
[332116606,1720972232972,-500.0,0.00013698,2]
[332116607,1720972232982,-500.0,0.00013698,2]
[332116608,1720972232994,-642.81015812,0.00013698,2]
[332116609,1720972233003,-207.88219737,0.00013698,2]
[332116610,1720972233012,-500.0,0.00013698,2]
[332116611,1720972233022,-500.0,0.00013698,2]
[332116612,1720972233031,-500.0,0.00013698,2]
[332116613,1720972233040,-500.0,0.00013698,2]
[332116614,1720972233049,-500.0,0.00013698,2]
[332116615,1720972233059,-500.0,0.00013698,2]
[332116616,1720972233068,-500.0,0.00013698,2]
[332116617,1720972233077,-500.0,0.00013698,2]
[332116618,1720972233087,-500.0,0.00013698,2]
[332116619,1720972233096,-500.0,0.00013698,2]
[332116620,1720972233106,-500.0,0.00013698,2]
[332116621,1720972233115,-500.0,0.00013698,2]
[332116622,1720972233124,-500.0,0.00013698,2]
[332116623,1720972233133,-500.0,0.00013698,2]
[332116624,1720972233144,-500.0,0.00013698,2]
[332116625,1720972233153,-500.0,0.00013698,2]
[332116626,1720972233163,-500.0,0.00013698,2]
[332116627,1720972233172,-693.27,0.00013698,2]
[332116628,1720972233182,-553.11,0.00013698,2]
[332116629,1720972233191,-500.0,0.00013698,2]
[332116630,1720972233201,-506.9,0.00013698,2]
[332116631,1720972233211,-762.63,0.00013698,2]